bitfinex-derivatives/quotes_ETHF0:USTF0_20250410
["timestamp","ask_amount","ask_price","bid_price","bid_amount"]
[1744277974363,1.25027,1600.1,1600.0,9.64135016]
[1744277975265,1.25027,1600.1,1600.0,4.64135016]
[1744277976355,1.25027,1600.1,1600.0,1.43355016]
[1744277981966,1.25014,1600.3,1600.1,1.25024]
[1744277982270,1.25009,1600.4,1600.2,6.03389]
[1744277982466,1.25009,1600.4,1600.3,2.9913]
[1744277984167,1.25011,1600.3,1600.2,3.2078]
[1744277984563,1.25011,1600.3,1600.2,44.0078]
[1744277984763,1.25011,1600.3,1600.2,1.6693]
[1744277985467,1.25011,1600.3,1600.2,4.8771]
[1744277986673,1.25009,1600.4,1600.2,11.12726]
[1744277986971,1.25009,1600.4,1600.3,1.5632]
[1744277990466,1.25011,1600.3,1600.2,3.2078]
[1744277990665,2.80361,1600.3,1600.2,3.2078]
[1744277991571,1.25019,1600.2,1600.1,1.5656]
[1744277991974,1.25027,1600.1,1600.0,54.35185016]
[1744277992670,1.25027,1600.1,1600.0,13.55185016]
[1744277993168,1.25027,1600.1,1600.0,8.99515016]
[1744277993371,1.25027,1600.1,1600.0,2.99915016]
[1744277993579,2.90157,1600.1,1600.0,2.99915016]
[1744277995767,2.90157,1600.1,1600.0,0.00935016]
[1744277996476,2.90157,1600.1,1600.0,3.21715016]
[1744277996677,2.90157,1600.1,1600.0,4.79415016]
[1744277997180,2.90157,1600.1,1600.0,3.21715016]
[1744277999270,2.90157,1600.1,1600.0,4.83995016]
[1744278000180,2.90157,1600.1,1600.0,0.00935016]
[1744278000476,8.52267,1600.1,1600.0,0.00935016]
[1744278000675,3.52267,1600.1,1600.0,0.00935016]
[1744278001580,3.52267,1600.1,1600.0,3.21715016]
[1744278002977,2.90157,1600.1,1600.0,3.21715016]
[1744278003379,2.90157,1600.1,1600.0,4.88515016]
[1744278003572,1.25027,1600.1,1600.0,4.88515016]
[1744278005073,1.25027,1600.1,1600.0,6.30395016]
[1744278005273,1.25015,1600.3,1600.0,11.30395016]
[1744278005586,1.25015,1600.3,1600.2,3.2078]
[1744278006078,1.25015,1600.3,1600.2,47.0354]
[1744278006781,1.25015,1600.3,1600.2,48.28559]
[1744278007183,1.25015,1600.3,1600.2,47.0354]
[1744278007884,1.25015,1600.3,1600.2,48.28559]
[1744278008087,7.73263006,1600.4,1600.3,1.25011]
[1744278008382,4.87917006,1600.4,1600.3,2.90911]
[1744278008581,7.34147091,1600.5,1600.4,1.25003]
[1744278008781,6.88664097,1600.5,1600.4,12.11283]
[1744278008981,6.88664097,1600.5,1600.4,17.11283]
[1744278009573,1.83554097,1600.5,1600.4,17.11283]
[1744278009771,9.62813591,1600.7,1600.6,1.24988]
[1744278009976,9.62813591,1600.7,1600.6,9.07368]
[1744278010185,9.62813591,1600.7,1600.6,14.07368]
[1744278010387,12.08821848,1600.8,1600.7,1.2498]
[1744278010573,12.08821848,1600.8,1600.7,7.6106]
[1744278010978,12.08821848,1600.8,1600.7,8.10231299]
[1744278011177,12.08821848,1600.8,1600.7,7.6106]
[1744278011378,0.00935016,1600.8,1600.7,7.6106]
[1744278011577,0.00935016,1600.8,1600.7,2.6106]
[1744278011784,2.87127016,1600.8,1600.7,1.2498]
[1744278011981,9.11847,1600.8,1600.6,15.06962]
[1744278012184,7.50627,1600.8,1600.6,13.8198]
[1744278012390,0.00935016,1600.8,1600.7,1.2498]
[1744278012889,0.00935016,1600.8,1600.7,7.6884]
[1744278013082,0.00935016,1600.8,1600.7,8.3132]
[1744278013787,0.00935016,1600.8,1600.7,15.8449]
[1744278014387,0.00935016,1600.8,1600.7,10.2201]
[1744278014588,0.00935016,1600.8,1600.7,15.2201]
[1744278017379,0.00935016,1600.8,1600.7,10.2201]
[1744278018083,0.00935016,1600.8,1600.7,14.7681]
[1744278018588,1.25907016,1600.8,1600.7,11.7938]
[1744278018883,1.25907016,1600.8,1600.7,10.544]
[1744278019090,7.50627,1600.8,1600.7,10.544]
[1744278019692,1.2498,1600.7,1600.6,3.2078]
[1744278019888,7.49699984,1600.7,1600.6,3.2078]
[1744278020086,12.49699984,1600.7,1600.6,3.2078]
[1744278020990,0.00935016,1600.8,1600.6,12.7558]
[1744278021188,0.00935016,1600.8,1600.7,1.2498]
[1744278021387,1.2498,1600.7,1600.6,9.00565]
[1744278021690,6.24719984,1600.7,1600.6,9.00565]
[1744278021880,0.00935016,1600.8,1600.7,1.2498]
[1744278022084,6.25655,1600.8,1600.7,1.2498]
[1744278022284,7.57925,1600.8,1600.7,1.2498]
[1744278022695,8.82897,1600.8,1600.7,1.2498]
[1744278023788,8.82897,1600.8,1600.6,9.00561]
[1744278024094,8.82897,1600.8,1600.7,1.2498]
[1744278024299,8.82897,1600.8,1600.6,9.00561]
[1744278024897,6.24719984,1600.7,1600.6,9.00561]
[1744278025799,6.24719984,1600.7,1600.6,10.54911]
[1744278026201,6.24719984,1600.7,1600.6,9.00561]
[1744278027702,1.33205016,1600.8,1600.7,1.2498]
[1744278028088,1.33205016,1600.8,1600.7,2.7933]
[1744278028295,1.33205016,1600.8,1600.7,1.2498]
[1744278028500,7.57925,1600.8,1600.7,1.2498]
[1744278029400,7.57925,1600.8,1600.6,9.00562]
[1744278029594,6.24719984,1600.7,1600.6,9.00568]
[1744278030793,7.64599984,1600.7,1600.6,9.00568]
[1744278031396,6.24719984,1600.7,1600.6,9.00568]
[1744278031596,1.33205016,1600.8,1600.7,1.2498]
[1744278031799,7.57925,1600.8,1600.7,1.2498]
[1744278031998,1.2498,1600.7,1600.6,9.00563]
[1744278032196,7.49699984,1600.7,1600.6,9.00563]
[1744278032406,7.79869984,1600.7,1600.6,9.00563]
[1744278033310,9.04849984,1600.7,1600.6,9.00563]
[1744278033614,9.04849984,1600.7,1600.6,7.7558]
[1744278034916,9.04849984,1600.7,1600.6,9.00568]
[1744278035112,9.04849984,1600.7,1600.6,4.45768]
[1744278035313,7.79869984,1600.7,1600.6,4.45768]
[1744278036308,9.04849984,1600.7,1600.6,4.45768]
[1744278036910,9.04849984,1600.7,1600.6,3.2078]
[1744278038812,3.12485,1600.6,1600.2,7.7558]
[1744278039004,1.25011,1600.3,1600.2,3.2078]
[1744278039205,1.25019,1600.2,1600.1,3.2078]
[1744278039402,1.25027,1600.1,1600.0,0.00935016]
[1744278039606,1.2505,1599.8,1599.7,17.62736506]
[1744278040015,7.49769984,1599.8,1599.7,17.62736506]
[1744278040208,6.24719984,1599.8,1599.7,18.87794506]
[1744278040407,6.24719984,1599.8,1599.7,4.45838]
[1744278040609,7.81649984,1599.8,1599.7,4.45838]
[1744278041109,9.06699984,1599.8,1599.7,3.2078]
[1744278041511,1.25058,1599.7,1599.6,55.22891522]
[1744278041710,9.12427984,1599.7,1599.6,17.63671522]
[1744278042218,9.12427984,1599.7,1599.6,58.43671522]
[1744278042612,9.12427984,1599.7,1599.6,55.22891522]
[1744278042815,10.53737984,1599.7,1599.6,55.22891522]
[1744278043622,10.53737984,1599.7,1599.6,58.43671522]
[1744278044214,10.53737984,1599.7,1599.6,14.42891522]
[1744278045721,10.53737984,1599.7,1599.6,0.00935016]
[1744278046224,10.53737984,1599.7,1599.4,40.8]
[1744278046225,3.12694,1599.5,1598.9,9.00795]
[1744278046416,1.25113,1599.0,1598.8,8.58203]
[1744278046615,4.29060984,1598.9,1598.7,15.67086506]
[1744278046811,1.25109,1599.1,1598.8,3.2078]
[1744278047011,1.5973,1599.0,1598.9,42.05116]
[1744278047221,1.25121,1598.9,1598.8,0.00633188]
[1744278047420,8.87970984,1598.9,1598.8,0.00633188]
[1744278047615,7.29150984,1598.9,1598.8,0.00633188]
[1744278047923,5.91020984,1598.9,1598.8,0.00633188]
[1744278049214,12.29150984,1598.9,1598.8,0.00633188]
[1744278049421,7.29150984,1598.9,1598.8,0.00633188]
[1744278049824,5.91020984,1598.9,1598.8,0.00633188]
[1744278050228,4.65899984,1598.9,1598.8,1.25761188]
[1744278050420,4.65899984,1598.9,1598.8,0.00633188]
[1744278050723,5.91020984,1598.9,1598.8,0.00633188]
[1744278051729,4.65899984,1598.9,1598.8,1.25761188]
[1744278052525,5.91020984,1598.9,1598.8,1.25761188]
[1744278052731,5.91020984,1598.9,1598.8,0.00633188]
[1744278052922,5.91020984,1598.9,1598.8,1.25761188]
[1744278053122,4.65899984,1598.9,1598.8,8.99941188]
[1744278053724,0.00937968,1599.1,1599.0,1.25113]
[1744278053920,4.60707952,1599.1,1599.0,1.25113]
[1744278054428,0.00937968,1599.1,1599.0,10.90163]
[1744278054731,0.00937968,1599.1,1599.0,5.90163]
[1744278054928,0.00937968,1599.1,1599.0,7.49353]
[1744278056232,0.00937968,1599.1,1599.0,12.49353]
[1744278057030,2.952e-05,1599.1,1599.0,12.99329349]
[1744278060326,2.952e-05,1599.1,1599.0,18.98929349]
[1744278060526,2.952e-05,1599.1,1599.0,18.02453]
[1744278061235,2.952e-05,1599.1,1599.0,12.02853]
[1744278061537,3.03942936,1599.1,1599.0,10.43663]
[1744278061939,3.03942936,1599.1,1599.0,12.11723]
[1744278063340,2.952e-05,1599.1,1599.0,12.11723]
[1744278063740,3.03942936,1599.1,1599.0,12.11723]
[1744278064039,3.03942936,1599.1,1598.8,11.78856188]
[1744278064235,4.67279984,1599.0,1598.8,5.79256188]
[1744278064441,3.0636,1598.9,1598.8,5.79256188]
[1744278064637,6.10299984,1598.9,1598.8,5.79256188]
[1744278064835,7.35420984,1598.9,1598.8,4.54133188]
[1744278065035,7.35420984,1598.9,1598.8,0.00633188]
[1744278065734,6.10299984,1598.9,1598.8,1.25761188]
[1744278067046,7.35420984,1598.9,1598.8,1.25761188]
[1744278067341,6.10299984,1598.9,1598.8,4.46541188]
[1744278067728,6.10299984,1598.9,1598.8,1.25761188]
[1744278068538,6.10299984,1598.9,1598.8,4.46541188]
[1744278069143,4.67279984,1598.9,1598.8,6.06211188]
[1744278070147,2.952e-05,1599.1,1599.0,1.25113]
[1744278070338,2.87757952,1599.1,1599.0,1.25113]
[1744278070640,4.66592936,1599.1,1599.0,1.25113]
[1744278070848,5.91697936,1599.1,1599.0,1.25113]
[1744278071346,4.66592936,1599.1,1599.0,1.25113]
[1744278071546,4.66592936,1599.1,1599.0,4.45893]
[1744278071750,1.62652952,1599.1,1599.0,4.45893]
[1744278071948,5.91697936,1599.1,1599.0,1.25113]
[1744278072154,1.25113,1599.0,1598.9,1.25116]
[1744278072341,1.644,1599.0,1598.9,5.78716]
[1744278072640,5.93452984,1599.0,1598.9,4.536]
[1744278072841,1.25121,1598.9,1598.8,0.00633188]
[1744278073046,7.29950984,1598.9,1598.8,0.00633188]
[1744278073248,12.29950984,1598.9,1598.8,0.00633188]
[1744278073852,7.29950984,1598.9,1598.8,0.00633188]
[1744278074845,12.29950984,1598.9,1598.8,0.00633188]
[1744278076657,9.26011,1598.9,1598.8,0.00633188]
[1744278076846,12.29950984,1598.9,1598.8,0.00633188]
[1744278077251,3.12833,1598.8,1598.3,14.99147]
[1744278077550,1.2516,1598.4,1598.3,8.99547]
[1744278077750,1.2516,1598.4,1598.3,49.79547]
[1744278077951,4.29099984,1598.4,1598.3,49.79547]
[1744278078357,3.03939984,1598.4,1598.3,46.58767]
[1744278078569,3.03939984,1598.4,1598.3,49.79547]
[1744278078858,4.65929984,1598.4,1598.3,49.79547]
[1744278079558,4.65929984,1598.4,1598.3,46.58767]
[1744278079945,5.91089984,1598.4,1598.3,46.58767]
[1744278080147,7.21789984,1598.4,1598.3,40.8]
[1744278080454,1.25167,1598.3,1598.2,0.00935016]
[1744278080654,4.65929984,1598.3,1598.2,1.26110016]
[1744278081049,4.65929984,1598.3,1598.2,42.06110016]
[1744278081458,5.91096984,1598.3,1598.2,40.80935016]
[1744278083254,14.73986984,1598.3,1598.2,0.00935016]
[1744278083553,14.73986984,1598.3,1597.8,3.71033267]
[1744278083554,1.25196,1598.0,1597.8,1.25207]
[1744278083754,1.3383,1597.9,1597.8,1.25207]
[1744278084258,4.37769984,1597.9,1597.8,42.05207]
[1744278084760,7.31138984,1597.9,1597.8,40.8]
[1744278085161,6.05939984,1597.9,1597.8,42.05207]
[1744278085459,6.05939984,1597.9,1597.8,45.25987]
[1744278085659,1.6817,1597.9,1597.8,45.25987]
[1744278085963,0.00937968,1598.0,1597.9,1.25199]
[1744278086154,3.04877952,1598.0,1597.9,8.82769]
[1744278087362,0.00937968,1598.0,1597.9,13.82769]
[1744278088262,0.00937968,1598.0,1597.9,8.82769]
[1744278088862,0.00937968,1598.0,1597.9,13.82769]
[1744278089362,0.00937968,1598.0,1597.9,19.82369]
[1744278089552,1.5845,1598.4,1598.2,1.25171]
[1744278089752,5.87553984,1598.4,1598.2,8.95851]
[1744278089947,3.03939984,1598.3,1598.2,8.9585]
[1744278090254,3.03939984,1598.4,1598.2,7.7068]
[1744278090455,4.72699984,1598.4,1598.3,1.25167]
[1744278090962,4.72699984,1598.4,1598.3,2.60207]
[1744278093556,1.71157968,1598.5,1598.4,1.2516]
[1744278093758,4.75097952,1598.5,1598.4,1.2516]
[1744278093960,4.75097952,1598.5,1598.4,4.4594]
[1744278094358,4.75097952,1598.5,1598.4,6.0055]
[1744278094566,6.00249952,1598.5,1598.4,3.2078]
[1744278094957,6.00249952,1598.5,1598.3,2.60204]
[1744278095151,4.74159984,1598.4,1598.3,2.60204]
[1744278095965,4.74159984,1598.4,1598.3,4.14814]
[1744278097868,4.74159984,1598.4,1598.3,2.60204]
[1744278099558,5.99319984,1598.4,1598.3,2.60204]
[1744278099868,5.99319984,1598.4,1598.3,1.25164]
[1744278100268,4.74159984,1598.4,1598.3,1.25164]
[1744278100968,5.99319984,1598.4,1598.2,10.64979]
[1744278101161,4.65569984,1598.3,1598.2,8.95849]
[1744278101363,5.90736984,1598.3,1598.1,8.58475968]
[1744278101567,5.90744984,1598.2,1598.1,8.58475968]
[1744278101769,2.86805,1598.2,1598.1,6.00537968]
[1744278101969,5.90744984,1598.2,1598.1,6.00537968]
[1744278102370,5.90744984,1598.2,1598.1,7.25720968]
[1744278102570,4.65569984,1598.2,1598.1,7.25720968]
[1744278104268,4.65569984,1598.2,1598.1,12.14640968]
[1744278104671,4.65569984,1598.2,1598.1,6.15040968]
[1744278104873,14.11524984,1598.2,1598.1,0.00937968]
[1744278105069,15.51804984,1598.2,1598.1,0.00937968]
[1744278105376,12.31024984,1598.2,1598.1,0.00937968]
[1744278106276,6.05849984,1598.2,1598.1,0.00937968]
[1744278106468,6.05849984,1598.2,1598.1,1.26120968]
[1744278108370,3.0191,1598.2,1598.1,1.26120968]
[1744278108576,1.5499,1598.4,1598.3,1.25167]
[1744278108874,2.65644968,1598.5,1598.4,1.2516]
[1744278108875,0.00937968,1598.5,1598.4,1.2516]
[1744278109170,9.76641025,1598.9,1598.8,1.25128]
[1744278109365,9.76641025,1598.9,1598.8,14.95308]
[1744278109677,9.76641025,1598.9,1598.8,60.75308]
[1744278110171,9.76641025,1598.9,1598.8,57.33298]
[1744278110369,9.76641025,1598.9,1598.8,62.33298]
[1744278110976,9.76641025,1598.9,1598.8,63.77118]
[1744278111979,9.76641025,1598.9,1598.8,64.28374525]
[1744278112475,9.76641025,1598.9,1598.8,63.77118]
[1744278112872,9.76641025,1598.9,1598.8,64.27368738]
[1744278113078,9.76641025,1598.9,1598.8,64.89928738]
[1744278113272,0.00937968,1599.0,1598.9,1.25121]
[1744278113975,3.04877952,1599.0,1598.9,5.74821]
[1744278114179,4.29990952,1599.0,1598.9,4.497]
[1744278116074,1.25121,1598.9,1598.8,40.8]
[1744278116280,1.25144,1598.6,1598.5,6.58126826]
[1744278116469,1.25141,1598.7,1598.5,6.58126826]
[1744278116674,1.25144,1598.6,1598.5,6.58126826]
[1744278116881,1.25142,1598.7,1598.5,7.83278826]
[1744278117078,4.5593,1598.8,1598.6,1.25143]
[1744278117280,1.3515,1598.8,1598.4,10.83377]
[1744278117473,1.3515,1598.8,1598.4,13.7008]
[1744278117673,1.2514,1598.7,1598.5,1.2515]
[1744278117886,1.25135,1598.8,1598.6,1.25144]
[1744278118091,2.64245,1598.9,1598.7,1.25133]
[1744278118782,1.3912,1598.9,1598.8,1.25128]
[1744278119487,2.64241,1598.9,1598.8,1.25128]
[1744278119687,2.64241,1598.9,1598.7,5.74833]
[1744278119879,1.25128,1598.8,1598.7,4.497]
[1744278120481,1.25136,1598.7,1598.6,3.2078]
[1744278120682,1.25136,1598.7,1598.5,5.7485]
[1744278121191,1.25144,1598.6,1598.5,4.497]
[1744278121892,1.25142,1598.7,1598.5,5.74849]
[1744278122289,1.5712,1598.6,1598.5,5.74849]
[1744278122495,2.82264,1598.6,1598.5,4.497]
[1744278122880,1.5712,1598.6,1598.3,1.3733]
[1744278123087,1.25174,1598.3,1598.1,5.75818968]
[1744278123286,1.25166,1598.4,1598.2,1.25175]
[1744278123596,1.6079,1598.4,1598.3,1.25167]
[1744278123895,2.8595,1598.4,1598.2,45.25949]
[1744278124691,1.6079,1598.3,1598.2,45.25949]
[1744278125289,1.6079,1598.3,1598.2,48.39419]
[1744278125587,3.2078,1598.8,1598.2,58.1385]
[1744278125790,14.58818211,1600.3,1599.1,1.25105]
[1744278125791,6.27472885,1599.2,1599.1,1.25105]
[1744278125991,0.9468806,1599.2,1599.1,14.95185]
[1744278126186,11.87814495,1599.3,1599.2,1.25097]
[1744278126392,11.87814495,1599.3,1599.2,40.8]
[1744278126588,11.87814495,1599.3,1599.2,46.54797]
[1744278127092,11.87814495,1599.3,1599.2,49.43772581]
[1744278128492,11.87814495,1599.3,1599.2,54.43772581]
[1744278128893,11.87814495,1599.3,1599.2,48.96064461]
[1744278129395,13.43964495,1599.3,1599.2,48.96064461]
[1744278129990,13.43964495,1599.3,1599.2,42.81354461]
[1744278130492,1.5615,1599.3,1599.2,42.81354461]
[1744278130693,0.00937968,1599.4,1599.3,1.25089]
[1744278130896,0.00937968,1599.4,1599.3,4.45869]
[1744278131291,0.00937968,1599.4,1599.3,5.22126461]
[1744278131494,5.00937968,1599.4,1599.3,5.22126461]
[1744278131811,6.26018968,1599.4,1599.3,0.76257461]
[1744278131989,0.00937968,1599.4,1599.3,1.25089]
[1744278132192,0.00937968,1599.4,1599.3,4.45869]
[1744278132892,0.00937968,1599.4,1599.3,5.21954876]
[1744278133696,4.89077898,1599.9,1599.8,1.2505]
[1744278133896,6.56117898,1599.9,1599.8,9.2393]
[1744278134093,6.56117898,1599.9,1599.8,48.7888]
[1744278134295,6.56117898,1599.9,1599.8,50.80015876]
[1744278136902,1.6704,1599.9,1599.8,50.80015876]
[1744278139803,1.6704,1599.9,1599.8,10.00015876]
[1744278140003,1.6704,1599.9,1599.8,8.74965876]
[1744278140305,11.74972,1599.9,1599.5,40.8]
[1744278140597,11.74972,1599.9,1599.3,0.49561092]
[1744278140598,3.2078,1599.7,1599.3,3.2078]
[1744278140802,6.8475,1599.8,1599.0,14.41956506]
[1744278140803,3.2078,1599.4,1599.0,14.41956506]
[1744278141109,1.25107,1599.1,1598.8,14.41956506]
[1744278141293,4.45883,1599.2,1598.9,1.25118]
[1744278141495,1.2511,1599.1,1598.8,15.67081506]
[1744278141689,3.2078,1599.2,1598.8,15.67081506]
[1744278141690,4.45884,1599.2,1598.9,1.25117]
[1744278141899,0.00937968,1599.1,1598.8,14.42894474]
[1744278142107,0.00937968,1599.1,1599.0,1.25113]
[1744278142801,1.26044968,1599.1,1598.9,1.25114]
[1744278143005,0.00937968,1599.1,1598.9,6.03014]
[1744278144007,1.39587968,1599.1,1598.9,6.03014]
[1744278144304,1.5839,1599.0,1598.9,6.03014]
[1744278144499,1.5839,1599.0,1598.8,15.68017474]
[1744278144702,1.5839,1599.0,1598.8,14.42894474]
[1744278145002,1.25121,1598.9,1598.8,14.42894474]
[1744278145498,7.84501,1598.9,1598.8,14.42894474]
[1744278146101,7.84501,1598.9,1598.8,0.00937968]
[1744278146801,1.25144,1598.6,1598.5,4.779]
[1744278147300,1.2516,1598.4,1598.3,100.117]
[1744278147510,1.25168,1598.3,1598.1,5.83547]
[1744278147798,1.6485,1598.3,1598.2,1.25175]
[1744278148204,1.6485,1598.3,1598.2,2.88815]
[1744278148614,1.6485,1598.3,1598.1,6.03179]
[1744278148903,1.6485,1598.3,1598.0,0.00937968]
[1744278149105,1.25183,1598.1,1598.0,0.00937968]
[1744278149902,2.90033,1598.1,1598.0,0.00937968]
[1744278150308,1.6485,1598.1,1598.0,0.00937968]
[1744278150511,2.90033,1598.1,1598.0,0.00937968]
[1744278151209,1.6485,1598.1,1598.0,0.00937968]
[1744278151705,2.90033,1598.1,1598.0,0.00937968]
[1744278152408,1.6485,1598.1,1598.0,0.00937968]
[1744278152603,2.90033,1598.1,1598.0,0.00937968]
[1744278154210,1.6485,1598.1,1598.0,1.26128968]
[1744278154409,1.6485,1598.1,1598.0,2.89858968]
[1744278154615,0.00937968,1598.2,1598.1,1.25183]
[1744278154817,0.00937968,1598.2,1598.1,6.25183]
[1744278155307,0.00937968,1598.2,1598.1,47.80530785]
[1744278156018,0.00937968,1598.2,1598.1,42.80530785]
[1744278160019,1.5804,1598.3,1598.2,2.49332982]
[1744278160220,1.5804,1598.3,1598.2,8.91762982]
[1744278160419,1.5804,1598.3,1598.2,9.67110767]
[1744278161120,0.33882018,1598.3,1598.2,8.42952785]
[1744278161508,1.59049018,1598.3,1598.2,8.42952785]
[1744278161808,0.33882018,1598.3,1598.2,8.42952785]
[1744278163636,0.00937968,1598.4,1598.3,1.25167]
[1744278163837,0.00937968,1598.4,1598.3,2.86227]
[1744278164227,0.00937968,1598.4,1598.3,4.28587]
[1744278164426,0.00937968,1598.4,1598.3,5.03934785]
[1744278165036,1.25125,1598.9,1598.7,1.25132]
[1744278165233,1.5457,1598.9,1598.6,4.727]
[1744278165535,6.14179898,1599.2,1599.0,1.25111]
[1744278165735,1.5457,1599.1,1599.0,1.25111]
[1744278165934,1.5457,1599.1,1599.0,2.00458785]
[1744278166237,6.15117866,1599.2,1599.0,3.58328785]
[1744278166441,7.79637866,1599.2,1599.0,3.58328785]
[1744278166734,7.79637866,1599.2,1599.1,0.75347785]
[1744278167435,2.90559968,1599.2,1599.1,0.75347785]
[1744278168538,1.65457968,1599.2,1599.1,2.00452785]
[1744278169038,2.90554968,1599.2,1599.1,0.75347785]
[1744278169230,7.90554968,1599.2,1599.1,0.75347785]
[1744278170339,2.90554968,1599.2,1599.1,0.75347785]
[1744278170742,1.65457968,1599.2,1599.1,2.00452785]
[1744278171042,2.90554968,1599.2,1599.1,0.75347785]
[1744278171235,7.90554968,1599.2,1599.1,0.75347785]
[1744278172039,2.90554968,1599.2,1599.1,0.75347785]
[1744278173946,7.90554968,1599.2,1599.1,0.75347785]
[1744278174735,2.90554968,1599.2,1599.1,0.75347785]
[1744278174939,2.90554968,1599.2,1599.1,2.00452785]
[1744278175340,0.00937968,1599.2,1599.1,14.93832785]
[1744278176044,0.00937968,1599.2,1599.1,17.85852785]
[1744278176848,0.00937968,1599.2,1599.1,58.65852785]
[1744278177349,0.00937968,1599.2,1599.1,53.65852785]
[1744278178249,0.00937968,1599.2,1599.1,48.93252785]
[1744278178445,0.00937968,1599.2,1599.1,59.1222986]
[1744278179536,0.00937968,1599.2,1599.1,58.65752785]
[1744278179848,0.00937968,1599.2,1599.1,49.10592785]
[1744278180244,0.00937968,1599.2,1599.1,43.12987785]
[1744278180449,1.26034968,1599.2,1599.1,49.48627785]
[1744278180840,2.83314968,1599.2,1599.1,46.27847785]
[1744278181049,1.58217968,1599.2,1599.1,47.52952785]
[1744278181845,2.83314968,1599.2,1599.1,0.75347785]
[1744278182151,7.83314968,1599.2,1599.1,0.75347785]
[1744278182550,2.83314968,1599.2,1599.1,0.75347785]
[1744278182752,2.83317968,1599.2,1599.0,1.25112]
[1744278183047,1.25113,1599.0,1598.9,0.00937968]
[1744278183440,8.23523,1599.0,1598.9,0.00937968]
[1744278183640,3.12827,1598.8,1598.3,7.9328]
[1744278183846,5.4165,1598.9,1598.4,0.75581201]
[1744278184047,1.25138,1598.7,1598.5,1.25148]
[1744278184246,1.25144,1598.6,1598.5,0.75581201]
[1744278184550,1.25142,1598.7,1598.5,2.00730201]
[1744278184750,1.5633,1598.7,1598.5,0.75581201]
[1744278184952,1.5633,1598.7,1598.6,1.25144]
[1744278185142,2.81468,1598.7,1598.5,2.00727201]
[1744278185340,2.81468,1598.7,1598.5,2.00730201]
[1744278185539,1.25131,1598.8,1598.6,1.25142]
[1744278185843,1.5633,1598.9,1598.8,1.25128]
[1744278186044,3.2078,1599.1,1598.9,1.25115]
[1744278186244,6.02215,1599.1,1598.9,5.97615]
[1744278186444,1.5633,1599.0,1598.9,4.725]
[1744278186640,1.5633,1599.0,1598.9,8.30932201]
[1744278186850,1.5633,1599.0,1598.9,7.05811201]
[1744278187049,1.5633,1599.0,1598.9,8.30932201]
[1744278187648,4.90015866,1599.2,1598.9,7.05811201]
[1744278187854,4.90015866,1599.2,1599.0,3.0468]
[1744278188152,6.46095866,1599.2,1599.1,3.63956201]
[1744278188452,4.90015866,1599.2,1599.1,6.84736201]
[1744278188753,4.90015866,1599.2,1599.1,3.63956201]
[1744278189454,4.90015866,1599.2,1599.1,6.84736201]
[1744278189844,4.90015866,1599.2,1599.1,11.84736201]
[1744278190348,4.90015866,1599.2,1599.1,17.84336201]
[1744278190547,4.90015866,1599.2,1599.1,58.64336201]
[1744278191546,0.00937968,1599.2,1599.1,53.64336201]
[1744278191951,0.00937968,1599.2,1599.1,47.64736201]
[1744278192250,0.00937968,1599.2,1599.1,5.48081201]
[1744278192440,1.26034968,1599.2,1599.1,5.48081201]
[1744278192846,7.67444968,1599.2,1599.1,5.48081201]
[1744278193043,9.36644968,1599.2,1599.1,0.75581201]
[1744278193247,12.57424968,1599.2,1599.1,0.75581201]
[1744278193446,13.19534968,1599.2,1599.1,0.75581201]
[1744278193657,1.25128,1598.8,1598.7,7.9328]
[1744278194055,1.5997,1599.0,1598.7,4.725]
[1744278194253,1.25128,1598.8,1598.7,4.725]
[1744278195246,8.2078,1598.8,1598.4,0.00937968]
[1744278195550,1.25146,1598.6,1598.4,1.26094968]
[1744278195751,1.5997,1598.5,1598.4,42.06094968]
[1744278195946,1.5997,1598.5,1598.4,43.66724968]
[1744278196147,1.5997,1598.5,1598.4,42.41567968]
[1744278196355,1.5997,1598.5,1598.4,43.66727968]
[1744278197365,1.5997,1598.5,1598.4,42.41567968]
[1744278197654,2.85122,1598.5,1598.4,40.80937968]
[1744278197854,1.5997,1598.5,1598.4,1.26097968]
[1744278198052,1.5997,1598.5,1598.4,4.46877968]
[1744278198454,1.5997,1598.5,1598.4,1.60367968]
[1744278198661,1.5997,1598.5,1598.4,1.26097968]
[1744278199051,6.25463,1599.3,1598.4,1.26097968]
[1744278199052,4.45899,1599.0,1598.7,1.25131]
[1744278199257,2.93161,1598.9,1598.7,1.25133]
[1744278199456,1.6035,1598.8,1598.7,1.25136]
[1744278200058,1.25121,1598.9,1598.7,2.95132]
[1744278200264,2.85471,1598.9,1598.7,2.95132]
[1744278200463,1.6035,1598.8,1598.7,2.95132]
[1744278200767,2.85478,1598.8,1598.7,1.7]
[1744278201266,1.6035,1598.8,1598.7,2.95136]
[1744278201566,1.6035,1598.8,1598.6,6.0254]
[1744278201859,1.6035,1598.8,1598.6,7.7254]
[1744278202064,1.6035,1598.8,1598.7,1.25136]
[1744278202261,1.6035,1598.8,1598.7,2.95136]
[1744278202762,1.6035,1598.8,1598.7,43.75136]
[1744278204368,4.596,1599.0,1598.9,1.25121]
[1744278204563,6.1918,1599.0,1598.9,1.25121]
[1744278205162,2.984,1599.0,1598.9,6.02521]
[1744278205359,4.90015866,1599.2,1598.9,7.9818]
[1744278205564,1.6727,1599.1,1599.0,1.25107]
[1744278206167,1.6727,1599.1,1599.0,2.86327]
[1744278206371,6.20225866,1599.2,1599.1,1.25105]
[1744278206372,4.90015866,1599.2,1599.1,1.25105]
[1744278206568,4.90015866,1599.2,1599.1,2.86325]
[1744278207063,4.90015866,1599.2,1599.1,6.07105]
[1744278207569,0.00937968,1599.2,1599.1,6.07105]
[1744278208571,0.00937968,1599.2,1599.1,11.07105]
[1744278209974,0.00937968,1599.2,1599.1,46.87105]
[1744278210171,0.00937968,1599.2,1599.1,45.25885]
[1744278210470,0.00937968,1599.2,1599.1,40.8]
[1744278210972,1.26034968,1599.2,1599.1,40.8]
[1744278211174,2.79824968,1599.2,1599.1,40.8]
[1744278211473,2.79824968,1599.2,1599.0,1.25107]
[1744278211474,1.54727968,1599.2,1599.0,1.25107]
[1744278211675,0.00937968,1599.2,1598.9,106.48573]
[1744278211870,0.00937968,1599.2,1599.1,1.25105]
[1744278212070,0.00937968,1599.2,1599.1,2.88325]
[1744278212275,0.00937968,1599.2,1599.0,42.05107]
[1744278212574,0.00937968,1599.2,1599.0,40.8]